[Event "Slovakia Chess Open 2024"]
[Site "Modra"]
[Date "2024.03.05"]
[Round "9.1"]
[White "Krivoborodov, Egor"]
[Black "Melih, Mario"]
[Result "1-0"]
[ECO "D03"]
[WhiteElo "2555"]
[BlackElo "1930"]
[Annotator "RC"]
[PlyCount "45"]
[EventDate "2024.02.29"]
[EventType "swiss"]
[EventCountry "SVK"]
[SourceTitle "playchess.com"]
[Source "ChessBase"]
[SourceQuality "1"]
[TimeControl "5400+30"]

1. d4 {[%emt 0:04:17]} Nf6 {[%emt 0:00:18]} 2. Bg5 {[%emt 0:00:04]} d5 {[%emt 0:01:02]} 3. Nd2 {[%emt 0:01:00]} e6 {[%emt 0:02:08]} 4. e3 {[%emt 0:00:17]} c5 {[%emt 0:01:56]} 5. c3 {[%emt 0:00:11]} Nc6 {[%emt 0:00:26]} 6. Ngf3 {[%emt 0:00:14]} h6 {[%emt 0:01:36]} 7. Bh4 {[%emt 0:00:26]} Be7 {[%emt 0:01:07]} 8. Bd3 {[%emt 0:00:08]} O-O {[%emt 0:02:31]} 9. Qe2 {[%emt 0:06:35]} b6 {[%emt 0:01:25]} 10. Ne5 {[%emt 0:08:08]} Bb7 {[%emt 0:07:05]} 11. f4 {[%emt 0:00:31]} Nd7 {[%emt 0:12:55]} 12. Bxe7 {[%emt 0:01:56]} Qxe7 {[%emt 0:00:10]} 13. O-O {[%emt 0:01:55]} Ndxe5 {[%emt 0:08:48]} 14. fxe5 {[%emt 0:00:52]} f6 {[%emt 0:04:19]} 15. exf6 {[%emt 0:16:09]} Rxf6 {[%emt 0:00:56]} 16. Rxf6 {[%emt 0:00:09]} Qxf6 {[%emt 0:00:10]} 17. Rf1 {[%emt 0:00:17]} Qe7 {[%emt 0:00:58]} 18. Qf3 {[%emt 0:00:37]} Rd8 {[%emt 0:03:44]} 19. a3 {[%emt 0:06:48]} Nb8 {[%emt 0:06:15]} 20. Bg6 {[%emt 0:09:51]} Bc8 {[%emt 0:04:49]} 21. Qg3 {[%emt 0:14:10]} e5 {[%emt 0:03:31]} 22. Rf7 {[%emt 0:12:50]} Qe6 {[%emt 0:01:21]} 23. Rxg7+ {[%emt 0:00:11]} 1-0

[Event "Slovakia Chess Open 2024"]
[Site "Modra"]
[Date "2024.03.05"]
[Round "9.2"]
[White "Shirinyan, Daniel"]
[Black "Stevik, Patrik"]
[Result "1/2-1/2"]
[ECO "C41"]
[WhiteElo "2177"]
[BlackElo "2167"]
[Annotator "RC"]
[PlyCount "86"]
[EventDate "2024.02.29"]
[EventType "swiss"]
[EventCountry "SVK"]
[SourceTitle "playchess.com"]
[Source "ChessBase"]
[SourceQuality "1"]
[TimeControl "5400+30"]

1. e4 {[%emt 0:00:32]} d6 {[%emt 0:02:37]} 2. d4 {[%emt 0:00:04]} Nf6 {[%emt 0:00:04]} 3. Nc3 {[%emt 0:00:04]} e5 {[%emt 0:00:02]} 4. Nf3 {[%emt 0:00:21]} Nbd7 {[%emt 0:00:15]} 5. Bc4 {[%emt 0:01:08]} Be7 {[%emt 0:00:29]} 6. O-O {[%emt 0:00:14]} O-O {[%emt 0:00:10]} 7. Re1 {[%emt 0:00:48]} c6 {[%emt 0:01:47]} 8. a4 {[%emt 0:00:10]} a5 {[%emt 0:02:36]} 9. h3 {[%emt 0:01:18]} h6 {[%emt 0:01:03]} 10. Bf1 {[%emt 0:04:40]} Re8 {[%emt 0:01:14]} 11. Be3 {[%emt 0:05:42]} Qc7 {[%emt 0:01:30]} 12. g3 {[%emt 0:02:37]} Nf8 {[%emt 0:08:17]} 13. Bg2 {[%emt 0:01:37]} Be6 {[%emt 0:01:18]} 14. Qd3 {[%emt 0:10:15]} Ng6 {[%emt 0:09:30]} 15. d5 {[%emt 0:02:59]} cxd5 {[%emt 0:04:24]} 16. exd5 {[%emt 0:01:28]} e4 {[%emt 0:00:29]} 17. Nxe4 {[%emt 0:00:49]} Nxd5 {[%emt 0:00:15]} 18. Nd4 {[%emt 0:09:20]} Nb4 {[%emt 0:07:01]} 19. Qd1 {[%emt 0:05:49]} Bc4 {[%emt 0:13:28]} 20. Nf5 {[%emt 0:12:18]} d5 {[%emt 0:02:28]} 21. Nxe7+ {[%emt 0:01:59]} Rxe7 {[%emt 0:01:32]} 22. Nd2 {[%emt 0:09:37]} d4 {[%emt 0:05:25]} 23. Nxc4 {[%emt 0:00:25]} Qxc4 {[%emt 0:00:27]} 24. Bd2 {[%emt 0:00:25]} Rxe1+ {[%emt 0:08:52]} 25. Bxe1 {[%emt 0:00:07]} Nxc2 {[%emt 0:01:09]} 26. Rc1 {[%emt 0:00:14]} d3 {[%emt 0:01:00]} 27. Bf1 {[%emt 0:01:43]} Qe6 {[%emt 0:03:32]} 28. Bxd3 {[%emt 0:02:17]} Nxe1 {[%emt 0:00:37]} 29. Qxe1 {[%emt 0:00:46]} Qxh3 {[%emt 0:00:43]} 30. Rc7 {[%emt 0:01:55]} Qg4 {[%emt 0:03:16]} 31. Bc4 {[%emt 0:07:07]} Rf8 {[%emt 0:01:58]} 32. b3 {[%emt 0:01:58]} Qf5 {[%emt 0:02:08]} 33. Qe3 {[%emt 0:10:59]} Ne5 {[%emt 0:03:27]} 34. Bd5 {[%emt 0:00:17]} Rd8 {[%emt 0:00:36]} 35. Qe4 {[%emt 0:00:23]} Qh5 {[%emt 0:03:27]} 36. Kg2 {[%emt 0:00:56]} Kh8 {[%emt 0:01:07]} 37. Re7 {[%emt 0:04:32]} f6 {[%emt 0:02:27]} 38. Be6 {[%emt 0:00:01]} Ng6 {[%emt 0:06:28]} 39. Bf7 {[%emt 0:00:35]} f5 {[%emt 0:01:08]} 40. Re8+ {[%emt 0:00:43]} Kh7 {[%emt 0:00:01]} 41. Qe6 {[%emt 0:00:55]} Nf4+ {[%emt 0:00:42]} 42. gxf4 {[%emt 0:00:37]} Qg4+ {[%emt 0:00:06]} 43. Kh2 {[%emt 0:00:23]} Qh4+ {[%emt 0:02:08]} 1/2-1/2

[Event "Slovakia Chess Open 2024"]
[Site "Modra"]
[Date "2024.03.05"]
[Round "9.3"]
[White "Pietrucha, Jaroslaw"]
[Black "Bochnicka, Vladimir"]
[Result "0-1"]
[ECO "B32"]
[WhiteElo "1781"]
[BlackElo "2413"]
[Annotator "RC"]
[PlyCount "44"]
[EventDate "2024.02.29"]
[EventType "swiss"]
[EventCountry "SVK"]
[SourceTitle "playchess.com"]
[Source "ChessBase"]
[SourceQuality "1"]
[TimeControl "5400+30"]

1. e4 {[%emt 0:08:21]} c5 {[%emt 0:00:10]} 2. Nf3 {[%emt 0:01:17]} Nc6 {[%emt 0:00:21]} 3. d4 {[%emt 0:04:38]} cxd4 {[%emt 0:00:48]} 4. Nxd4 {[%emt 0:00:30]} e5 {[%emt 0:00:30]} 5. Nb3 {[%emt 0:01:10]} Nf6 {[%emt 0:00:41]} 6. Bg5 {[%emt 0:00:31]} h6 {[%emt 0:00:35]} 7. Bxf6 {[%emt 0:01:42]} Qxf6 {[%emt 0:00:12]} 8. Be2 {[%emt 0:00:30]} Bb4+ {[%emt 0:00:57]} 9. c3 {[%emt 0:01:55]} Be7 {[%emt 0:00:33]} 10. O-O {[%emt 0:01:18]} O-O {[%emt 0:00:33]} 11. N1d2 {[%emt 0:01:24]} d6 {[%emt 0:00:25]} 12. Bg4 {[%emt 0:01:10]} Be6 {[%emt 0:01:49]} 13. Qe2 {[%emt 0:02:53]} Qg6 {[%emt 0:01:10]} 14. Bxe6 {[%emt 0:03:53]} fxe6 {[%emt 0:00:14]} 15. Rad1 {[%emt 0:01:39]} Rf4 {[%emt 0:01:30]} 16. f3 {[%emt 0:01:31]} d5 {[%emt 0:02:22]} 17. Qb5 {[%emt 0:01:34]} Bd8 {[%emt 0:07:04]} 18. exd5 {[%emt 0:01:58]} Bb6+ {[%emt 0:00:17]} 19. Kh1 {[%emt 0:01:34]} Rh4 {[%emt 0:00:28]} 20. Ne4 {[%emt 0:04:11]} Qh5 {[%emt 0:01:29]} 21. Nbc5 {[%emt 0:02:15]} Rxh2+ {[%emt 0:00:08]} 22. Kg1 {[%emt 0:01:01]} Qh4 {[%emt 0:00:31]} 0-1

[Event "Slovakia Chess Open 2024"]
[Site "Modra"]
[Date "2024.03.05"]
[Round "9.4"]
[White "Banas, Kamil"]
[Black "Galla, Richard"]
[Result "1/2-1/2"]
[ECO "C63"]
[WhiteElo "2162"]
[BlackElo "1975"]
[Annotator "RC"]
[PlyCount "90"]
[EventDate "2024.02.29"]
[EventType "swiss"]
[EventCountry "SVK"]
[SourceTitle "playchess.com"]
[Source "ChessBase"]
[SourceQuality "1"]
[TimeControl "5400+30"]

1. e4 {[%emt 0:02:18]} e5 {[%emt 0:00:59]} 2. Nf3 {[%emt 0:00:06]} Nc6 {[%emt 0:00:09]} 3. Bb5 {[%emt 0:00:20]} f5 {[%emt 0:00:51]} 4. d3 {[%emt 0:00:55]} fxe4 {[%emt 0:00:17]} 5. dxe4 {[%emt 0:00:01]} Nf6 {[%emt 0:00:13]} 6. O-O {[%emt 0:01:59]} d6 {[%emt 0:00:10]} 7. Nc3 {[%emt 0:01:26]} Be7 {[%emt 0:00:11]} 8. Qe2 {[%emt 0:01:54]} O-O {[%emt 0:02:28]} 9. Bxc6 {[%emt 0:00:34]} bxc6 {[%emt 0:00:06]} 10. Qc4+ {[%emt 0:00:07]} Kh8 {[%emt 0:00:12]} 11. Qxc6 {[%emt 0:00:08]} Rb8 {[%emt 0:01:29]} 12. Qa4 {[%emt 0:06:29]} Bg4 {[%emt 0:02:30]} 13. Ne1 {[%emt 0:01:47]} Nh5 {[%emt 0:16:30]} 14. f3 {[%emt 0:03:24]} Be6 {[%emt 0:01:30]} 15. Nd3 {[%emt 0:05:35]} c5 {[%emt 0:03:27]} 16. Nd5 {[%emt 0:04:16]} Bg5 {[%emt 0:01:49]} 17. c4 {[%emt 0:03:15]} Bxc1 {[%emt 0:01:15]} 18. Raxc1 {[%emt 0:00:07]} Qg5 {[%emt 0:00:19]} 19. Qc2 {[%emt 0:02:57]} Bxd5 {[%emt 0:01:24]} 20. exd5 {[%emt 0:03:19]} Nf4 {[%emt 0:01:58]} 21. b3 {[%emt 0:10:35]} Nxd3 {[%emt 0:01:40]} 22. Qxd3 {[%emt 0:01:17]} Kg8 {[%emt 0:09:43]} 23. Rc2 {[%emt 0:00:51]} Rb7 {[%emt 0:02:41]} 24. Re2 {[%emt 0:00:26]} Rf4 {[%emt 0:01:13]} 25. Qc3 {[%emt 0:00:48]} Qd8 {[%emt 0:00:36]} 26. Re4 {[%emt 0:03:46]} Rxe4 {[%emt 0:00:42]} 27. fxe4 {[%emt 0:00:01]} Rf7 {[%emt 0:01:14]} 28. Rxf7 {[%emt 0:00:36]} Kxf7 {[%emt 0:00:08]} 29. Qf3+ {[%emt 0:00:31]} Kg8 {[%emt 0:00:19]} 30. Qf5 {[%emt 0:00:00]} h6 {[%emt 0:01:41]} 31. g3 {[%emt 0:01:26]} Qa5 {[%emt 0:01:42]} 32. Qf2 {[%emt 0:01:10]} Qc3 {[%emt 0:03:03]} 33. Qe2 {[%emt 0:00:10]} Qc1+ {[%emt 0:01:08]} 34. Kg2 {[%emt 0:00:02]} Qg5 {[%emt 0:00:50]} 35. h4 {[%emt 0:00:49]} Qc1 {[%emt 0:02:20]} 36. Kh3 {[%emt 0:00:53]} h5 {[%emt 0:11:11]} 37. Kg2 {[%emt 0:05:13]} Qh6 {[%emt 0:00:30]} 38. Qe1 {[%emt 0:00:56]} Kh7 {[%emt 0:02:49]} 39. a3 {[%emt 0:00:25]} a5 {[%emt 0:00:42]} 40. Kh3 {[%emt 0:02:54]} Kh8 {[%emt 0:01:36]} 41. Kh2 {[%emt 0:03:34]} Kh7 {[%emt 0:00:14]} 42. Kg2 {[%emt 0:03:34]} Kg8 {[%emt 0:02:23]} 43. Kh3 {[%emt 0:01:08]} Kh7 {[%emt 0:00:18]} 44. Kh2 {[%emt 0:00:07]} Kh8 {[%emt 0:00:12]} 45. Kg2 {[%emt 0:02:39]} Kh7 {[%emt 0:04:29]} 1/2-1/2

[Event "Slovakia Chess Open 2024"]
[Site "Modra"]
[Date "2024.03.05"]
[Round "9.5"]
[White "Mruskovic, Radoslav"]
[Black "Novomeska, Karin"]
[Result "1-0"]
[ECO "D91"]
[WhiteElo "1933"]
[BlackElo "1929"]
[Annotator "NA RC"]
[PlyCount "93"]
[EventDate "2024.02.29"]
[EventType "swiss"]
[EventCountry "SVK"]
[SourceTitle "playchess.com"]
[Source "ChessBase"]
[SourceQuality "1"]
[TimeControl "5400+30"]

1. d4 {[%emt 0:00:05]} d5 {[%emt 0:00:03]} 2. c4 {[%emt 0:00:04]} c6 {[%emt 0:00:03]} 3. Nf3 {[%emt 0:00:05]} Nf6 {[%emt 0:00:08]} 4. Nc3 {[%emt 0:00:12]} g6 {[%emt 0:02:21]} 5. Bg5 {[%emt 0:03:54]} Bg7 {[%emt 0:08:49]} 6. e3 {[%emt 0:00:27]} O-O {[%emt 0:10:16]} 7. Rc1 {[%emt 0:01:16]} dxc4 {[%emt 0:04:47]} 8. Bxc4 {[%emt 0:00:47]} b5 {[%emt 0:01:28]} 9. Bd3 {[%emt 0:02:06]} Qb6 {[%emt 0:09:22]} 10. b4 {[%emt 0:00:57]} a5 {[%emt 0:02:13]} 11. a3 {[%emt 0:00:09]} axb4 {[%emt 0:00:38]} 12. axb4 {[%emt 0:00:12]} Na6 {[%emt 0:01:14]} 13. Rb1 {[%emt 0:06:47]} Nc7 {[%emt 0:05:08]} 14. Bxf6 {[%emt 0:05:25]} Bxf6 {[%emt 0:00:15]} 15. Ne4 {[%emt 0:00:45]} Bg7 $11 {[%emt 0:04:55]} 16. Qc2 {[%emt 0:04:44]} Nd5 {[%emt 0:05:12]} 17. O-O {[%emt 0:00:53]} Re8 {[%emt 0:06:46]} 18. Rfc1 {[%emt 0:00:26]} Bb7 {[%emt 0:01:13]} 19. Nc5 {[%emt 0:01:43]} Ra3 {[%emt 0:02:06]} 20. e4 {[%emt 0:06:01]} Nf4 {[%emt 0:05:35]} 21. Bf1 {[%emt 0:01:31]} Rc8 {[%emt 0:11:12]} 22. Rb3 {[%emt 0:00:54]} Rxb3 {[%emt 0:01:04]} 23. Qxb3 {[%emt 0:00:10]} Qc7 {[%emt 0:04:02]} 24. g3 {[%emt 0:00:43]} Rd8 {[%emt 0:09:34]} 25. Nxb7 {[%emt 0:01:28]} Qxb7 {[%emt 0:01:24]} 26. gxf4 {[%emt 0:00:24]} Qd7 {[%emt 0:02:20]} 27. Ne5 {[%emt 0:00:21]} Bxe5 {[%emt 0:00:23]} 28. dxe5 {[%emt 0:00:12]} Qd4 {[%emt 0:01:23]} 29. Bg2 {[%emt 0:02:33]} Qd2 {[%emt 0:00:07]} 30. Qc3 {[%emt 0:06:55]} Qxf4 {[%emt 0:00:09]} 31. Qxc6 {[%emt 0:00:26]} Qxe5 {[%emt 0:00:43]} 32. Qc5 {[%emt 0:00:21]} Qf4 {[%emt 0:00:30]} 33. Rf1 {[%emt 0:00:54]} Qf6 {[%emt 0:01:04]} 34. Qxb5 {[%emt 0:01:21]} h5 {[%emt 0:00:03]} 35. Qc5 {[%emt 0:01:29]} Rb8 {[%emt 0:00:46]} 36. e5 {[%emt 0:02:20]} Qe6 {[%emt 0:00:32]} 37. b5 {[%emt 0:00:34]} Rc8 {[%emt 0:00:22]} 38. Qe3 {[%emt 0:00:48]} Rb8 {[%emt 0:00:28]} 39. Rb1 {[%emt 0:01:26]} Qf5 {[%emt 0:00:50]} 40. Qe4 {[%emt 0:00:30]} Qd7 {[%emt 0:00:26]} 41. b6 {[%emt 0:00:44]} Kg7 {[%emt 0:00:18]} 42. e6 {[%emt 0:00:58]} Qd6 {[%emt 0:00:45]} 43. exf7 {[%emt 0:01:15]} Rxb6 {[%emt 0:00:22]} 44. Rxb6 {[%emt 0:00:40]} Qxb6 {[%emt 0:00:03]} 45. Qxe7 {[%emt 0:00:28]} Qb1+ {[%emt 0:00:45]} 46. Bf1 {[%emt 0:00:11]} Qf5 {[%emt 0:00:20]} 47. f8=Q# {[%emt 0:00:17]} 1-0

[Event "Slovakia Chess Open 2024"]
[Site "Modra"]
[Date "2024.03.05"]
[Round "9.6"]
[White "Loffay, Pavol"]
[Black "Oruzinsky, Juraj"]
[Result "1/2-1/2"]
[ECO "A07"]
[WhiteElo "1753"]
[BlackElo "2160"]
[Annotator "RC"]
[PlyCount "87"]
[EventDate "2024.02.29"]
[EventType "swiss"]
[EventCountry "SVK"]
[SourceTitle "playchess.com"]
[Source "ChessBase"]
[SourceQuality "1"]
[TimeControl "5400+30"]

1. Nf3 {[%emt 0:00:04]} Nf6 {[%emt 0:00:11]} 2. d3 {[%emt 0:00:05]} d5 {[%emt 0:00:08]} 3. g3 {[%emt 0:00:12]} Bg4 {[%emt 0:00:30]} 4. Bg2 {[%emt 0:00:11]} c6 {[%emt 0:00:06]} 5. Bg5 {[%emt 0:00:44]} Nbd7 {[%emt 0:00:33]} 6. c3 {[%emt 0:00:31]} e5 {[%emt 0:07:11]} 7. Nbd2 {[%emt 0:01:56]} h6 {[%emt 0:00:57]} 8. Bxf6 {[%emt 0:00:11]} Qxf6 {[%emt 0:00:09]} 9. Qc2 {[%emt 0:02:20]} Bc5 {[%emt 0:10:07]} 10. b4 {[%emt 0:04:51]} Bb6 {[%emt 0:00:49]} 11. O-O {[%emt 0:01:47]} O-O {[%emt 0:00:34]} 12. c4 {[%emt 0:08:02]} dxc4 {[%emt 0:11:20]} 13. Qxc4 {[%emt 0:07:50]} Be6 {[%emt 0:02:35]} 14. Qc3 {[%emt 0:01:54]} Bd5 {[%emt 0:09:17]} 15. Nb3 {[%emt 0:04:16]} Qe7 {[%emt 0:06:18]} 16. Nfd2 {[%emt 0:05:11]} Bxg2 {[%emt 0:01:54]} 17. Kxg2 {[%emt 0:01:02]} Nf6 {[%emt 0:04:02]} 18. a3 {[%emt 0:04:02]} Nd5 {[%emt 0:00:44]} 19. Qb2 {[%emt 0:00:50]} Rae8 {[%emt 0:03:11]} 20. Nc4 {[%emt 0:07:42]} e4 {[%emt 0:05:47]} 21. Nxb6 {[%emt 0:05:37]} axb6 {[%emt 0:00:25]} 22. Rae1 {[%emt 0:06:50]} exd3 {[%emt 0:09:51]} 23. exd3 {[%emt 0:02:40]} Qxe1 {[%emt 0:00:33]} 24. Rxe1 {[%emt 0:00:07]} Rxe1 {[%emt 0:00:04]} 25. Qd2 {[%emt 0:07:08]} Rfe8 {[%emt 0:01:04]} 26. Nc1 {[%emt 0:01:14]} R1e7 {[%emt 0:03:00]} 27. h4 {[%emt 0:02:57]} b5 {[%emt 0:01:23]} 28. d4 {[%emt 0:02:24]} Ra8 {[%emt 0:03:03]} 29. Ne2 {[%emt 0:07:02]} Rxa3 {[%emt 0:00:52]} 30. Nf4 {[%emt 0:00:27]} Nxf4+ {[%emt 0:05:49]} 31. Qxf4 {[%emt 0:01:00]} Rd7 {[%emt 0:01:29]} 32. Qb8+ {[%emt 0:04:00]} Kh7 {[%emt 0:00:14]} 33. Qe8 {[%emt 0:00:08]} Rxd4 {[%emt 0:04:18]} 34. Qxf7 {[%emt 0:00:26]} Rd5 {[%emt 0:00:43]} 35. Qxb7 {[%emt 0:01:26]} Rc3 {[%emt 0:00:04]} 36. Qf7 {[%emt 0:00:46]} Rc4 {[%emt 0:01:36]} 37. h5 {[%emt 0:01:43]} Rd8 {[%emt 0:00:19]} 38. Qe7 {[%emt 0:00:53]} Rcd4 {[%emt 0:00:54]} 39. f4 {[%emt 0:00:53]} Kh8 {[%emt 0:01:39]} 40. f5 {[%emt 0:00:55]} R4d7 {[%emt 0:00:27]} 41. Qe6 {[%emt 0:00:20]} Rd6 {[%emt 0:00:52]} 42. Qe7 {[%emt 0:00:42]} Kg8 {[%emt 0:00:54]} 43. f6 {[%emt 0:02:38]} gxf6 {[%emt 0:00:08]} 44. Qe4 {[%emt 0:00:08]} 1/2-1/2

[Event "Slovakia Chess Open 2024"]
[Site "Modra"]
[Date "2024.03.05"]
[Round "9.7"]
[White "Bucor, Mark"]
[Black "Smetana, Peter"]
[Result "0-1"]
[ECO "A58"]
[WhiteElo "1852"]
[BlackElo "1993"]
[Annotator "NA RC"]
[PlyCount "90"]
[EventDate "2024.02.29"]
[EventType "swiss"]
[EventCountry "SVK"]
[SourceTitle "playchess.com"]
[Source "ChessBase"]
[SourceQuality "1"]
[TimeControl "5400+30"]

1. d4 {[%emt 0:00:08]} Nf6 {[%emt 0:00:06]} 2. c4 {[%emt 0:00:05]} c5 {[%emt 0:00:14]} 3. d5 {[%emt 0:00:06]} b5 {[%emt 0:00:09]} 4. cxb5 {[%emt 0:00:07]} a6 {[%emt 0:00:08]} 5. bxa6 {[%emt 0:00:11]} g6 {[%emt 0:00:07]} 6. Nc3 {[%emt 0:00:12] A58: Benko/Volga Gambit: Lines with 5 bxa6.} Bg7 {[%emt 0:00:05]} 7. e4 {[%emt 0:00:20]} O-O {[%emt 0:00:19]} 8. Nf3 {[%emt 0:01:30]} Qa5 {[%emt 0:00:30]} 9. a7 {[%emt 0:02:46]} Nxe4 {[%emt 0:13:04]} 10. axb8=Q {[%emt 0:05:07]} Rxb8 {[%emt 0:00:42]} 11. Qc2 {[%emt 0:09:25]} Nxc3 {[%emt 0:00:33]} 12. Bd2 {[%emt 0:00:32]} Qa4 {[%emt 0:00:11]} 13. b3 {[%emt 0:07:52]} Qe4+ {[%emt 0:00:25]} 14. Qxe4 {[%emt 0:00:21]} Nxe4 {[%emt 0:00:07]} 15. Rc1 {[%emt 0:01:30]} d6 {[%emt 0:02:35]} 16. Bc4 {[%emt 0:10:18]} Bg4 {[%emt 0:03:43]} 17. h3 {[%emt 0:01:45]} Bxf3 {[%emt 0:00:28]} 18. gxf3 {[%emt 0:00:16]} Nxd2 {[%emt 0:00:03]} 19. Kxd2 {[%emt 0:00:15]} Bh6+ {[%emt 0:00:03]} 20. Kc3 {[%emt 0:00:17]} Bxc1 {[%emt 0:00:10]} 21. Rxc1 {[%emt 0:00:07]} Ra8 {[%emt 0:00:13]} 22. a4 {[%emt 0:00:16]} Rfb8 {[%emt 0:00:08]} 23. Bb5 {[%emt 0:00:31]} Kg7 {[%emt 0:00:27]} 24. Kc4 {[%emt 0:00:14]} Kf6 {[%emt 0:00:10]} 25. Ra1 {[%emt 0:00:08]} Ra5 {[%emt 0:00:26]} 26. b4 {[%emt 0:00:06]} cxb4 {[%emt 0:05:34]} 27. Rb1 {[%emt 0:00:08]} Rba8 {[%emt 0:02:16]} 28. Kxb4 $19 {[%emt 0:00:34]} R5a7 {[%emt 0:01:42]} 29. Ra1 {[%emt 0:00:31]} Rb8 {[%emt 0:00:19]} 30. Kc4 {[%emt 0:01:24]} Ra5 {[%emt 0:00:06]} 31. Re1 {[%emt 0:01:05]} Ra7 {[%emt 0:00:51]} 32. Ra1 {[%emt 0:00:19]} Rc7+ {[%emt 0:00:27]} 33. Bc6 {[%emt 0:01:06]} Rb2 {[%emt 0:02:15]} 34. a5 {[%emt 0:11:35]} Ra7 {[%emt 0:01:36]} 35. a6 {[%emt 0:01:40]} Rb6 {[%emt 0:00:35]} 36. Bb5 {[%emt 0:00:21]} Rc7+ {[%emt 0:00:10]} 37. Kb4 {[%emt 0:02:46]} Rc5 {[%emt 0:00:14]} 38. Ra5 {[%emt 0:00:08]} Rcxb5+ {[%emt 0:00:13]} 39. Rxb5 {[%emt 0:00:23]} Rxa6 {[%emt 0:00:02]} 40. Kb3 {[%emt 0:02:41]} Ra1 {[%emt 0:00:09]} 41. Kc3 {[%emt 0:01:46]} Rh1 {[%emt 0:00:25]} 42. Kd3 {[%emt 0:00:31]} Rxh3 {[%emt 0:00:04]} 43. Ke3 {[%emt 0:00:11]} h5 {[%emt 0:00:06]} 44. Rb4 {[%emt 0:00:13]} Rh1 {[%emt 0:00:51]} 45. f4 {[%emt 0:01:08]} Rd1 {[%emt 0:00:35]} 0-1

[Event "Slovakia Chess Open 2024"]
[Site "Modra"]
[Date "2024.03.05"]
[Round "9.8"]
[White "Kukla, Tomas"]
[Black "Palka, Miroslav"]
[Result "1-0"]
[ECO "E87"]
[WhiteElo "1864"]
[BlackElo "1780"]
[Annotator "NA RC"]
[PlyCount "36"]
[EventDate "2024.02.29"]
[EventType "swiss"]
[EventCountry "SVK"]
[SourceTitle "playchess.com"]
[Source "ChessBase"]
[SourceQuality "1"]
[TimeControl "5400+30"]

1. d4 {[%emt 0:01:22]} Nf6 {[%emt 0:00:20]} 2. c4 {[%emt 0:00:28]} d6 {[%emt 0:00:08]} 3. Nc3 {[%emt 0:00:46]} g6 {[%emt 0:00:12]} 4. e4 {[%emt 0:01:07]} Bg7 {[%emt 0:00:13]} 5. f3 {[%emt 0:00:10]} O-O {[%emt 0:00:05]} 6. Be3 {[%emt 0:00:17]} Nbd7 {[%emt 0:01:22]} 7. Qd2 {[%emt 0:00:41]} e5 {[%emt 0:02:17]} 8. d5 {[%emt 0:00:59]} a6 {[%emt 0:03:25]} 9. Bd3 {[%emt 0:01:02]} Re8 {[%emt 0:01:12]} 10. Nge2 {[%emt 0:01:01]} Nf8 {[%emt 0:00:38]} 11. Bh6 {[%emt 0:02:04]} Bh8 {[%emt 0:01:02]} 12. Ng3 {[%emt 0:00:45]} Bd7 {[%emt 0:02:06]} 13. O-O {[%emt 0:00:42]} c5 {[%emt 0:07:32]} 14. Rab1 {[%emt 0:04:36]} Qc7 {[%emt 0:04:44]} 15. Kh1 {[%emt 0:01:14]} a5 {[%emt 0:13:36]} 16. Nb5 {[%emt 0:06:34]} Qb6 {[%emt 0:00:34]} 17. Na3 {[%emt 0:00:30]} Reb8 {[%emt 0:00:30]} 18. Rfc1 {[%emt 0:03:49]} Ne8 {[%emt 0:06:10]} 1-0

[Event "Slovakia Chess Open 2024"]
[Site "Modra"]
[Date "2024.03.05"]
[Round "9.9"]
[White "Hitka, Dominik"]
[Black "Hasala, Richard"]
[Result "1-0"]
[ECO "A07"]
[WhiteElo "1709"]
[BlackElo "1935"]
[Annotator "NA RC"]
[PlyCount "129"]
[EventDate "2024.02.29"]
[EventType "swiss"]
[EventCountry "SVK"]
[SourceTitle "playchess.com"]
[Source "ChessBase"]
[SourceQuality "1"]
[TimeControl "5400+30"]

1. d3 {[%emt 0:00:08]} e5 {[%emt 0:00:43]} 2. Nf3 {[%emt 0:00:17]} Nc6 {[%emt 0:00:14]} 3. g3 {[%emt 0:00:20]} d5 {[%emt 0:00:07]} 4. Bg2 {[%emt 0:00:14]} Nf6 {[%emt 0:00:03]} 5. O-O {[%emt 0:00:41]} Be7 {[%emt 0:00:14]} 6. c3 {[%emt 0:00:38]} O-O {[%emt 0:00:36]} 7. Qc2 {[%emt 0:00:24]} h6 {[%emt 0:02:32]} 8. e4 {[%emt 0:01:52]} Be6 {[%emt 0:02:36]} 9. Re1 {[%emt 0:04:18]} dxe4 {[%emt 0:00:49]} 10. dxe4 {[%emt 0:00:27]} Qc8 {[%emt 0:00:18]} 11. Nbd2 {[%emt 0:03:40]} a5 {[%emt 0:02:05]} 12. Nf1 {[%emt 0:04:31]} Rd8 {[%emt 0:04:48]} 13. Be3 {[%emt 0:00:38]} b6 {[%emt 0:00:32]} 14. N3d2 {[%emt 0:03:28]} Ng4 {[%emt 0:06:16]} (14... a4 $15) 15. a4 {[%emt 0:04:31]} h5 {[%emt 0:06:34]} 16. h4 {[%emt 0:10:11]} Qa6 {[%emt 0:01:39]} 17. Bf3 $11 {[%emt 0:04:28]} Kh7 {[%emt 0:14:46]} 18. Be2 {[%emt 0:02:28]} Qc8 {[%emt 0:01:03]} 19. Bb5 {[%emt 0:02:12]} Qb7 {[%emt 0:01:12]} 20. Nf3 {[%emt 0:01:42]} f6 {[%emt 0:03:13]} 21. Rad1 {[%emt 0:02:45]} Na7 {[%emt 0:05:30]} 22. Be2 {[%emt 0:01:51]} Nc8 {[%emt 0:00:14]} 23. Rxd8 {[%emt 0:01:24]} Bxd8 {[%emt 0:00:14]} 24. Bc1 {[%emt 0:03:34]} Nd6 {[%emt 0:00:27]} 25. N3h2 {[%emt 0:00:33]} Nxh2 {[%emt 0:02:59]} 26. Nxh2 {[%emt 0:00:25]} g6 {[%emt 0:00:09]} 27. Qd1 {[%emt 0:11:13]} Nf7 {[%emt 0:06:18]} 28. g4 {[%emt 0:01:51]} hxg4 {[%emt 0:02:16]} 29. Bxg4 {[%emt 0:00:17]} f5 {[%emt 0:00:16]} 30. exf5 {[%emt 0:01:03]} gxf5 {[%emt 0:00:15]} 31. Bxf5+ {[%emt 0:00:31]} Bxf5 {[%emt 0:01:31]} 32. Qh5+ {[%emt 0:00:16]} Kg7 {[%emt 0:05:51]} 33. Qxf5 {[%emt 0:00:24]} Be7 {[%emt 0:02:07]} 34. Bg5 {[%emt 0:04:46]} Bxg5 {[%emt 0:04:30]} 35. hxg5 {[%emt 0:00:13]} Qc6 {[%emt 0:00:07]} 36. Nf3 {[%emt 0:01:27]} Re8 {[%emt 0:03:34]} 37. Nxe5 {[%emt 0:05:23]} Qd5 {[%emt 0:00:03]} 38. Qf6+ {[%emt 0:05:32]} Kg8 {[%emt 0:00:16]} 39. f4 {[%emt 0:00:30]} Qc5+ {[%emt 0:02:07]} 40. Kf1 {[%emt 0:00:15]} Nxe5 {[%emt 0:00:20]} 41. Rxe5 {[%emt 0:00:44]} Qc4+ {[%emt 0:00:08]} 42. Kf2 {[%emt 0:01:12]} Rxe5 {[%emt 0:01:32]} 43. Qxe5 {[%emt 0:00:20]} Qxa4 {[%emt 0:00:07]} 44. Qe6+ {[%emt 0:05:32]} Kh7 {[%emt 0:02:32]} 45. Qf7+ {[%emt 0:01:03]} Kh8 {[%emt 0:00:12]} 46. Qf5 {[%emt 0:05:00]} Qb3 {[%emt 0:01:39]} 47. g6 {[%emt 0:02:11]} Qxb2+ {[%emt 0:00:30]} 48. Kg3 {[%emt 0:00:16]} Qxc3+ {[%emt 0:00:30]} 49. Kg4 {[%emt 0:00:37]} Qg7 {[%emt 0:00:28]} 50. Qh5+ {[%emt 0:02:12]} Kg8 {[%emt 0:00:09]} 51. Qd5+ {[%emt 0:00:07]} Kh8 {[%emt 0:00:28]} 52. Qd8+ {[%emt 0:00:13]} Qg8 {[%emt 0:00:10]} 53. Qf6+ {[%emt 0:00:57]} Qg7 {[%emt 0:00:10]} 54. Kg5 {[%emt 0:03:13]} Kg8 {[%emt 0:07:15]} 55. Qxg7+ {[%emt 0:00:47]} Kxg7 {[%emt 0:00:02]} 56. f5 {[%emt 0:00:09]} a4 {[%emt 0:00:42]} 57. f6+ {[%emt 0:00:06]} Kg8 {[%emt 0:01:14]} 58. Kh6 {[%emt 0:00:20]} b5 {[%emt 0:02:50]} 59. f7+ {[%emt 0:00:47]} Kf8 {[%emt 0:00:53]} 60. Kh7 {[%emt 0:00:06]} c6 {[%emt 0:00:15]} 61. g7+ {[%emt 0:00:18]} Kxf7 {[%emt 0:00:04]} 62. g8=Q+ {[%emt 0:00:10]} Ke7 {[%emt 0:00:03]} 63. Qg7+ {[%emt 0:00:37]} Ke6 {[%emt 0:00:13]} 64. Qc3 {[%emt 0:00:17]} Kd5 {[%emt 0:00:10]} 65. Qb4 {[%emt 0:00:15]} 1-0